bitfinex/quotes_ETHUSD_20220115
["timestamp","ask_amount","ask_price","bid_price","bid_amount"]
[1642280458073,0.045463,3349.2,3349.1,11.65733724]
[1642280458473,0.045463,3349.2,3349.1,11.54453724]
[1642280459173,1.20674362,3349.4,3349.1,11.54453724]
[1642280459382,0.04138,3349.2,3349.1,11.54453724]
[1642280459673,1.21583662,3349.4,3349.1,11.54453724]
[1642280459874,0.009093,3349.3,3349.1,11.54453724]
[1642280460121,1.21583662,3349.4,3349.1,11.54453724]
[1642280460320,0.045463,3349.2,3349.1,11.54453724]
[1642280460521,0.045463,3349.2,3349.1,6.219466]
[1642280460921,0.014154,3349.2,3349.1,0.119466]
[1642280461119,0.035934,3349.2,3349.1,0.119466]
[1642280461520,0.035934,3349.2,3349.1,0.56648986]
[1642280462127,1.20674362,3349.4,3349.1,0.56648986]
[1642280462128,0.009093,3349.3,3349.1,0.56648986]
[1642280462324,0.021226,3349.2,3349.1,0.56648986]
[1642280462523,0.03126,3349.2,3349.1,0.56648986]
[1642280463124,0.08831784,3349.2,3349.1,0.70009072]
[1642280463323,3.08831784,3349.2,3349.1,0.70009072]
[1642280463970,3.06598684,3349.2,3349.1,0.70009072]
[1642280464171,3.05339784,3349.2,3349.1,0.70009072]
[1642280464369,2.07537684,3349.2,3349.1,0.70009072]
[1642280466172,0.009093,3349.4,3349.1,0.70009072]
[1642280466371,0.009093,3349.4,3349.2,0.03871248]
[1642280466771,0.009093,3349.4,3349.1,0.70009072]
[1642280467618,0.009093,3349.4,3349.1,0.25306686]
[1642280468022,0.1194,3349.5,3349.1,0.25306686]
[1642280468220,1.13409918,3349.3,3349.2,19.0812737]
[1642280468422,1.13409918,3349.3,3349.2,17.2809296]
[1642280468620,9.918e-05,3349.3,3349.2,17.30113556]
[1642280468917,9.918e-05,3349.3,3349.2,17.31473556]
[1642280469117,9.918e-05,3349.3,3349.2,17.3095649]
[1642280469317,0.05115824,3349.4,3349.2,17.3087649]
[1642280469520,0.05115824,3349.4,3349.3,0.1194]
[1642280469724,0.05115824,3349.4,3349.3,0.74976317]
[1642280469919,0.05115824,3349.4,3349.3,0.74896317]
[1642280470117,0.05115824,3349.4,3349.3,0.74816317]
[1642280470321,0.05115824,3349.4,3349.3,0.74496317]
[1642280470519,0.05115824,3349.4,3349.3,0.73856317]
[1642280470721,0.05115824,3349.4,3349.3,2.4825937]
[1642280470918,0.05115824,3349.4,3349.3,2.5969937]
[1642280471119,0.05115824,3349.4,3349.3,2.59576268]
[1642280471371,0.05115824,3349.4,3349.3,0.74096317]
[1642280471569,0.05115824,3349.4,3349.3,0.62656317]
[1642280472276,0.05115824,3349.4,3349.3,2.74496317]
[1642280472475,0.05115824,3349.4,3349.3,2.78062015]
[1642280472773,0.05115824,3349.4,3349.3,0.62822015]
[1642280472969,0.05115824,3349.4,3349.3,0.63142015]
[1642280473173,0.05131563,3349.4,3349.3,0.76421514]
[1642280473372,0.05131563,3349.4,3349.3,16.54855816]
[1642280473571,0.05131563,3349.4,3349.3,21.90215816]
[1642280473971,3.05131563,3349.4,3349.3,21.90215816]
[1642280474171,3.05131563,3349.4,3349.3,22.01920616]
[1642280474372,3.05131563,3349.4,3349.3,22.01600616]
[1642280474778,2.05131563,3349.4,3349.3,22.01600616]
[1642280475215,2.05131563,3349.4,3349.3,6.21600616]
[1642280475416,2.05131563,3349.4,3349.3,6.21120616]
[1642280475814,2.05131563,3349.4,3349.3,6.20720616]
[1642280476317,2.05131563,3349.4,3349.3,6.21200616]
[1642280476515,2.05131563,3349.4,3349.3,10.16040616]
[1642280476716,2.05131563,3349.4,3349.3,10.16120616]
[1642280476919,2.05131563,3349.4,3349.3,10.16200616]
[1642280477325,2.05131563,3349.4,3349.3,10.16040616]
[1642280477520,2.05131563,3349.4,3349.3,10.16120616]
[1642280477721,2.05131563,3349.4,3349.3,10.16840616]
[1642280477920,2.05131563,3349.4,3349.3,10.16680616]
[1642280478118,2.13919827,3349.4,3349.3,10.03241117]
[1642280478319,2.13919827,3349.4,3349.3,10.03401117]
[1642280478519,2.13919827,3349.4,3349.3,10.02761117]
[1642280478767,2.13919827,3349.4,3349.3,10.03001117]
[1642280478968,2.13919827,3349.4,3349.3,10.03081117]
[1642280479168,2.13919827,3349.4,3349.3,10.02921117]
[1642280479371,2.13919827,3349.4,3349.3,10.02601117]
[1642280479667,2.13919827,3349.4,3349.3,10.02921117]
[1642280479877,2.13919827,3349.4,3349.3,10.02681117]
[1642280480169,2.13919827,3349.4,3349.3,6.07361117]
[1642280480369,2.13919827,3349.4,3349.3,6.07041117]
[1642280480571,2.13919827,3349.4,3349.3,6.07601117]
[1642280480768,2.13919827,3349.4,3349.3,6.07521117]
[1642280481169,2.13919827,3349.4,3349.3,6.06721117]
[1642280481369,2.13919827,3349.4,3349.3,6.06801117]
[1642280481572,2.25859827,3349.4,3349.3,5.99395327]
[1642280481771,2.25859827,3349.4,3349.3,5.99635327]
[1642280481971,2.25859827,3349.4,3349.3,5.99795327]
[1642280482375,2.13919827,3349.4,3349.3,12.60755327]
[1642280482623,2.13919827,3349.4,3349.3,12.60355327]
[1642280482922,2.13919827,3349.4,3349.3,12.59955327]
[1642280483124,2.13919827,3349.4,3349.3,6.00275327]
[1642280483323,2.25859827,3349.4,3349.3,5.99555327]
[1642280483523,2.25859827,3349.4,3349.3,5.99635327]
[1642280483723,2.13919827,3349.4,3349.3,5.99395327]
[1642280483923,2.13919827,3349.4,3349.3,5.99795327]
[1642280484126,2.13919827,3349.4,3349.3,6.01075327]
[1642280484322,2.13919827,3349.4,3349.3,11.65355327]
[1642280484523,2.13919827,3349.4,3349.3,6.00035327]
[1642280484725,2.13919827,3349.4,3349.3,5.99875327]
[1642280484926,0.1194,3349.7,3349.4,5.6]
[1642280485121,0.1194,3349.7,3349.5,1.27716011]
[1642280485321,0.00170527,3349.6,3349.5,4.97716011]
[1642280485524,0.12110527,3349.6,3349.5,1.27716011]
[1642280486873,0.00170527,3349.6,3349.5,1.27716011]
[1642280488073,0.04574068,3349.6,3349.5,1.45731536]
[1642280488374,0.1194,3350.1,3349.5,1.57651536]
[1642280488672,0.00113684,3349.8,3349.5,1.57331536]
[1642280488872,0.1194,3349.7,3349.5,1.45731536]
[1642280489072,0.00113684,3349.8,3349.5,1.45731536]
[1642280491222,0.12053684,3349.8,3349.5,1.45731536]
[1642280491423,1.99626469,3349.8,3349.5,1.45731536]
[1642280492023,1.99649986,3349.8,3349.5,1.45731536]
[1642280492825,0.12053684,3349.8,3349.5,1.45731536]
[1642280493226,0.04203985,3349.7,3349.5,1.45731536]
[1642280493869,0.04203985,3349.7,3349.5,1.30731536]
[1642280494668,0.04203985,3349.7,3349.5,0.45915525]
[1642280497926,0.04203985,3349.7,3349.6,0.12021649]
[1642280499525,0.04203985,3349.7,3349.6,0.02021649]
[1642280500124,0.04203985,3349.7,3349.6,4.58961649]
[1642280500330,0.04203985,3349.7,3349.6,0.13961649]
[1642280500725,0.04203985,3349.7,3349.6,0.02021649]
[1642280502372,1.58811915,3349.7,3349.6,0.02021649]
[1642280502570,0.04203985,3349.7,3349.6,0.02021649]
[1642280503371,0.04203985,3349.7,3349.6,13.09921649]
[1642280503571,0.04203985,3349.7,3349.6,13.33809949]
[1642280503770,0.00113684,3349.8,3349.6,0.71449949]
[1642280503973,0.00113684,3349.8,3349.7,0.1194]
[1642280504171,0.00113684,3349.8,3349.7,5.0692]
[1642280504371,0.00113684,3349.8,3349.7,1.54679264]
[1642280504671,0.00113684,3349.8,3349.7,0.13799264]
[1642280504870,0.00113684,3349.8,3349.7,0.02519264]
[1642280505334,0.00113684,3349.8,3349.7,0.45419264]
[1642280505729,0.00113684,3349.8,3349.7,0.429]
[1642280506533,1.44255685,3349.8,3349.7,0.429]
[1642280506732,1.29951229,3349.8,3349.7,0.429]
[1642280506933,0.85695544,3349.8,3349.7,0.429]
[1642280507133,0.1194,3350.2,3349.7,0.429]
[1642280507532,0.1216737,3350.2,3349.7,0.379]
[1642280508332,0.65955823,3350.1,3349.7,0.379]
[1642280508533,0.1194,3350.0,3349.7,0.379]
[1642280508771,0.12053685,3350.0,3349.7,0.379]
[1642280509375,2.12053685,3350.0,3349.6,0.119483]
[1642280509774,0.12053685,3350.0,3349.6,0.119483]
[1642280510173,8.45,3349.9,3349.0,0.1194]
[1642280510375,0.01215192,3349.2,3348.9,0.63849818]
[1642280510578,0.0103369,3349.1,3348.6,0.1194]
[1642280510781,0.0103369,3349.1,3348.3,9.35]
[1642280510976,0.0103369,3349.1,3348.7,0.00625265]
[1642280511276,0.81348669,3349.0,3348.5,0.0073895]
[1642280511574,0.81348669,3349.0,3348.5,0.429]
[1642280511774,0.00227369,3348.9,3348.6,1.149694]
[1642280512174,0.00170527,3348.8,3348.6,1.149694]
[1642280512377,0.00170527,3348.8,3348.6,0.82634883]
[1642280512621,0.00113685,3348.7,3348.6,0.82634883]
[1642280513020,0.00113685,3348.7,3348.6,6.37634883]
[1642280513220,0.00113685,3348.7,3348.5,0.429]
[1642280513621,0.00113685,3348.7,3348.6,3.5508]
[1642280513820,0.00113685,3348.7,3348.6,3.5516]
[1642280514021,5.2401,3349.6,3348.6,0.0016]
[1642280514222,0.7393469,3349.2,3348.6,0.0016]
[1642280514425,1.4,3348.7,3348.6,0.0016]
[1642280515322,0.1194,3348.8,3348.6,0.0016]
[1642280516372,0.1194,3348.8,3348.6,0.1144]
[1642280516571,0.00113684,3348.9,3348.6,0.0016]
[1642280517472,0.00113684,3348.9,3348.6,0.1136]
[1642280517672,0.00113684,3348.9,3348.6,0.0016]
[1642280517873,0.00113684,3348.9,3348.6,0.1184]
[1642280518072,0.00113684,3348.9,3348.7,0.14718192]
[1642280520030,0.00113684,3348.9,3348.3,0.42478492]
[1642280520420,0.00113684,3348.9,3348.4,0.11450527]
[1642280520620,0.00113684,3348.9,3348.4,0.11850527]
[1642280520819,0.00113684,3348.9,3348.5,0.00113685]
[1642280521720,0.00113684,3348.9,3348.5,1.31374824]
[1642280522325,0.1194,3349.1,3348.5,1.31374824]
[1642280522526,0.1194,3349.2,3348.6,0.82813417]
[1642280522727,0.1194,3349.8,3349.0,0.01238982]
[1642280522925,5.27383685,3350.2,3349.1,4.25]
[1642280523125,9.10390501,3350.2,3349.1,4.679]
[1642280523324,0.00341054,3349.7,3349.6,1.45662277]
[1642280523529,0.00341054,3349.7,3349.6,1.88562277]
[1642280523772,0.72874284,3349.7,3349.6,1.88562277]
[1642280524172,0.72874284,3349.7,3349.6,0.429]
[1642280525876,0.00341054,3349.7,3349.6,0.429]
[1642280526977,0.68633206,3349.7,3349.6,0.429]
[1642280528025,0.00341054,3349.7,3349.6,1.63308095]
[1642280528223,0.08305452,3349.7,3349.6,1.90225856]
[1642280528629,0.08305452,3349.7,3349.6,0.69817761]
[1642280529024,0.08305452,3349.7,3349.6,2.69817761]
[1642280529228,0.08305452,3349.7,3349.6,2.96397761]
[1642280529426,0.08305452,3349.7,3349.6,6.32797761]
[1642280529626,0.08305452,3349.7,3349.6,6.32557761]
[1642280529825,0.1194,3350.2,3349.7,7.35]
[1642280530024,0.1194,3350.2,3350.0,5.36]
[1642280530225,0.00227369,3350.1,3350.0,5.4793]
[1642280530424,0.00227369,3350.1,3350.0,6.0219]
[1642280530925,0.00227369,3350.1,3350.0,5.9083]
[1642280531131,0.00227369,3350.1,3350.0,5.9298]
[1642280531377,0.00227369,3350.1,3350.0,8.08428691]
[1642280531579,0.00227369,3350.1,3350.0,8.08348691]
[1642280531875,0.00227369,3350.1,3350.0,16.94388691]
[1642280532080,0.00227369,3350.1,3350.0,16.93828691]
[1642280532280,0.00227369,3350.1,3350.0,16.93748691]
[1642280532579,0.00227369,3350.1,3350.0,16.93108691]
[1642280532776,0.00227369,3350.1,3350.0,16.93588691]
[1642280532978,0.03130256,3350.1,3350.0,18.1432048]
[1642280533179,0.03130256,3350.1,3350.0,18.1448048]
[1642280533377,0.03130256,3350.1,3350.0,18.1520048]
[1642280533581,0.03130256,3350.1,3350.0,18.1552048]
[1642280533781,0.03130256,3350.1,3350.0,22.0560048]
[1642280533978,0.03130256,3350.1,3350.0,18.1536048]
[1642280534177,0.03130256,3350.1,3350.0,18.1496048]
[1642280534378,0.03130256,3350.1,3350.0,18.1544048]
[1642280534578,0.03130256,3350.1,3350.0,18.1552048]
[1642280534777,0.03130256,3350.1,3350.0,18.1544048]
[1642280535032,0.03130256,3350.1,3350.0,18.1528048]
[1642280535624,0.03130256,3350.1,3350.0,18.1536048]
[1642280536024,3.10005056,3351.3,3350.1,16.6]
[1642280536227,0.1194,3351.1,3350.4,5.8073522]
[1642280536431,0.00397897,3350.8,3350.6,0.01293415]
[1642280536624,0.00397897,3350.8,3350.7,7.2983]
[1642280536826,3.10005056,3351.3,3351.2,1.09394774]
[1642280537025,3.10005056,3351.3,3351.2,2.43673259]
[1642280537426,3.05005056,3351.3,3351.2,1.52294774]
[1642280538025,2.95005056,3351.3,3351.2,1.52294774]
[1642280539271,3.72705056,3351.3,3351.2,1.52294774]
[1642280541783,3.72705056,3351.3,3351.2,1.63894774]
[1642280541979,3.72705056,3351.3,3351.2,1.52294774]
[1642280542724,4.50405056,3351.3,3351.2,1.63574774]
[1642280542924,4.50405056,3351.3,3351.2,1.52294774]
[1642280543126,4.52948209,3351.3,3351.2,1.61995819]
[1642280543526,4.52948209,3351.3,3351.2,1.74075819]
[1642280543728,4.52948209,3351.3,3351.2,1.74395819]
[1642280544027,4.52948209,3351.3,3351.2,1.75275819]
[1642280544228,4.52948209,3351.3,3351.2,1.87605819]
[1642280544437,4.52948209,3351.3,3351.2,1.87365819]
[1642280544627,4.52948209,3351.3,3351.2,1.86965819]
[1642280544828,4.52948209,3351.3,3351.2,1.86885819]
[1642280545027,0.78085155,3351.3,3351.2,5.96965819]
[1642280545228,0.78085155,3351.3,3351.2,7.79381872]
[1642280545527,0.78085155,3351.3,3351.2,3.69461872]
[1642280545730,0.78085155,3351.3,3351.2,1.87125819]
[1642280545928,1.55785155,3351.3,3351.2,1.87205819]
[1642280546127,1.55785155,3351.3,3351.2,1.86165819]
[1642280546370,0.78085155,3351.3,3351.2,1.86405819]
[1642280546573,0.78085155,3351.3,3351.2,1.86805819]
[1642280546771,4.662,3351.6,3351.2,1.86325819]
[1642280547075,0.00795793,3351.5,3351.3,0.116]
[1642280547270,0.00795793,3351.5,3351.4,0.429]
[1642280547474,4.662,3351.6,3351.4,0.429]
[1642280548671,4.612,3351.6,3351.4,0.429]
[1642280549072,5.389,3351.6,3351.4,0.429]
[1642280549677,5.389,3351.6,3351.5,0.1152]
[1642280549873,5.389,3351.6,3351.5,0.5434]
[1642280550124,5.39752636,3351.6,3351.5,0.5442]
[1642280550320,5.39752636,3351.6,3351.5,0.5474]
[1642280550722,5.39752636,3351.6,3351.5,0.5458]
[1642280550922,5.39752636,3351.6,3351.5,0.429]
[1642280551422,5.39752636,3351.6,3351.5,0.5474]
[1642280552022,5.39752636,3351.6,3351.5,0.5522]
[1642280552228,6.17452636,3351.6,3351.5,0.5474]
[1642280552423,6.17452636,3351.6,3351.5,0.5482]
[1642280552622,6.17452636,3351.6,3351.5,0.549]
[1642280552822,6.17452636,3351.6,3351.5,0.5514]
[1642280553024,6.17452636,3351.6,3351.5,0.5522]
[1642280553224,6.19298962,3351.6,3351.5,0.86183065]
[1642280553425,6.19298962,3351.6,3351.5,0.85703065]
[1642280553627,6.19298962,3351.6,3351.5,0.85623065]
[1642280553880,6.19298962,3351.6,3351.5,0.85703065]
[1642280554275,6.19298962,3351.6,3351.5,0.85783065]
[1642280554580,6.19298962,3351.6,3351.5,0.85943065]
[1642280554883,6.19298962,3351.6,3351.5,0.86423065]
[1642280555077,6.19298962,3351.6,3351.5,0.86583065]
[1642280555276,6.19298962,3351.6,3351.5,0.86823065]
[1642280555477,6.96998962,3351.6,3351.5,0.86743065]
[1642280555681,6.96998962,3351.6,3351.5,0.86983065]
[1642280555879,6.96998962,3351.6,3351.5,0.86823065]
[1642280556079,6.96998962,3351.6,3351.5,0.86743065]
[1642280556280,6.96998962,3351.6,3351.5,0.86583065]
[1642280556479,6.96998962,3351.6,3351.5,0.85623065]
[1642280556680,6.96998962,3351.6,3351.5,0.85783065]
[1642280557080,6.96998962,3351.6,3351.5,0.85703065]
[1642280557384,4.89853124,3351.6,3351.5,0.85703065]
[1642280557629,4.89853124,3351.6,3351.5,0.86023065]
[1642280557831,4.89853124,3351.6,3351.5,2.683027]
[1642280558130,4.89853124,3351.6,3351.5,2.68226914]
[1642280558331,4.89853124,3351.6,3351.5,2.68866914]
[1642280558530,4.89853124,3351.6,3351.5,0.86587279]
[1642280558730,5.67553124,3351.6,3351.5,0.86507279]
[1642280559130,5.67553124,3351.6,3351.5,0.86027279]
[1642280559331,5.67553124,3351.6,3351.5,0.86587279]
[1642280559629,5.67553124,3351.6,3351.5,0.86667279]
[1642280559834,5.67553124,3351.6,3351.5,0.86427279]
[1642280560233,5.67553124,3351.6,3351.5,0.86027279]
[1642280560432,5.67553124,3351.6,3351.5,0.86107279]
[1642280560632,5.67553124,3351.6,3351.5,0.85947279]
[1642280561135,5.67553124,3351.6,3351.5,0.73707279]
[1642280561584,5.67553124,3351.6,3351.5,0.30807279]
[1642280561784,6.57183124,3351.6,3351.5,0.30807279]
[1642280563080,6.55336798,3351.6,3351.5,0.26905253]
[1642280565029,9.88238658,3351.6,3351.5,0.26905253]
[1642280567731,9.76308658,3351.6,3351.5,0.26905253]
[1642280568130,10.54008658,3351.6,3351.5,0.09704022]
[1642280571281,11.31708658,3351.6,3351.5,0.09704022]
[1642280572928,11.43638658,3351.6,3351.1,0.1193]
[1642280573134,2.1096876,3351.5,3351.1,0.1193]
[1642280573329,0.1193,3351.4,3350.7,0.03902538]
[1642280573529,0.12668951,3351.4,3350.7,0.03902538]
[1642280573730,0.00682109,3351.3,3350.7,0.03902538]
[1642280573931,1.32267808,3351.1,3350.7,0.03902538]
[1642280574129,1.92451752,3351.0,3350.7,0.03902538]
[1642280574331,1.97835845,3351.0,3350.7,2.538e-05]
[1642280574529,0.80179546,3350.9,3350.7,2.538e-05]
[1642280574730,0.1193,3350.8,3350.7,2.538e-05]
[1642280574931,0.12327897,3350.8,3350.7,2.538e-05]
[1642280575931,0.00397897,3350.8,3350.7,2.538e-05]
[1642280577782,0.78097897,3350.8,3350.7,2.538e-05]
[1642280578183,0.80469822,3350.8,3350.7,0.28266684]
[1642280579182,0.80469822,3350.8,3350.1,0.128393]
[1642280579582,0.00341054,3350.7,3350.1,0.128393]
[1642280580026,0.00284212,3350.6,3350.1,0.1193]
[1642280580227,0.00284212,3350.6,3349.7,3.7174]
[1642280580228,0.00284212,3350.6,3349.7,5.53991346]
[1642280580430,0.0022737,3350.5,3350.2,0.1168]
[1642280580629,0.0022737,3350.5,3350.0,0.429]
[1642280580829,0.00170527,3350.4,3350.0,0.429]
[1642280581035,0.79447508,3350.8,3350.1,0.1376]
[1642280581229,0.79447508,3350.8,3350.2,0.429]
[1642280581230,2.19592037,3350.8,3350.2,0.429]
[1642280581432,0.00170527,3350.7,3350.2,0.43013684]
[1642280581832,0.00113685,3350.6,3350.2,0.54213684]
[1642280582230,0.00113685,3350.6,3350.1,1.19392231]
[1642280582429,0.00113685,3350.6,3349.8,0.1288]
[1642280582430,0.00170527,3350.5,3350.2,0.429]
[1642280582830,0.00113684,3350.4,3349.8,0.1272]
[1642280583031,0.00113684,3350.4,3349.9,0.429]
[1642280583232,0.03112062,3350.6,3350.0,4.45]
[1642280583433,0.03112062,3350.6,3350.1,0.429]
[1642280583641,0.03112062,3350.6,3350.1,0.54990527]
[1642280583886,1.56360344,3350.8,3350.2,0.15652165]
[1642280584085,1.56360344,3350.8,3350.3,0.429]
[1642280584280,1.56360344,3350.8,3350.3,0.43127369]
[1642280584481,1.56360344,3350.8,3350.4,0.00170527]
[1642280584684,1.56360344,3350.8,3350.4,0.54190527]
[1642280584890,0.16215815,3350.8,3350.4,0.54430527]
[1642280585084,0.16215815,3350.8,3350.5,0.00113684]
[1642280586586,0.16215815,3350.8,3350.6,1.29725331]
[1642280587527,0.11215815,3350.8,3350.6,1.29725331]
[1642280587927,0.03398174,3350.7,3350.6,1.59507827]
[1642280588129,0.14592955,3350.8,3350.6,1.59507827]
[1642280588328,0.14592955,3350.8,3350.6,0.29782496]
[1642280588530,0.91654807,3350.9,3350.6,0.29782496]
[1642280588838,0.777,3350.8,3350.6,0.29782496]
[1642280589028,0.777,3350.8,3350.6,0.29537617]
[1642280589229,0.87935807,3350.9,3350.8,1.09736864]
[1642280589429,0.76005807,3350.9,3350.8,1.09736864]
[1642280589629,0.76119492,3350.9,3350.8,1.09736864]
[1642280589833,0.76119492,3350.9,3350.6,0.29537617]
[1642280590031,0.88049492,3350.9,3350.6,0.29537617]
[1642280591483,0.88049492,3350.9,3350.7,1.49869589]
[1642280591879,1.65749492,3350.9,3350.7,1.49869589]
[1642280592079,1.60749492,3350.9,3350.7,1.49869589]
[1642280593181,0.77813685,3350.9,3350.8,0.29729592]
[1642280593383,0.77813685,3350.9,3350.8,14.41409592]
[1642280593579,0.77813685,3350.9,3350.8,0.42849592]
[1642280593779,0.77813685,3350.9,3350.8,0.42449592]
[1642280593985,0.777,3351.0,3350.8,6.62449592]
[1642280594181,0.777,3351.0,3350.9,6.529]
[1642280594381,0.777,3351.0,3350.9,7.3945549]
[1642280594681,0.777,3351.0,3350.9,7.3953549]
[1642280594880,0.777,3351.0,3350.9,7.3969549]
[1642280595132,0.777,3351.0,3350.9,7.3961549]
[1642280595133,1.554,3351.0,3350.9,7.3961549]
[1642280595332,1.554,3351.0,3350.9,7.3969549]
[1642280595534,1.554,3351.0,3350.9,7.3961549]
[1642280595735,1.554,3351.0,3350.9,3.12384608]
[1642280595934,1.554,3351.0,3350.9,3.12144608]
[1642280596335,1.554,3351.0,3350.9,3.12224608]
[1642280596541,1.554,3351.0,3350.9,3.12304608]
[1642280596736,0.78085155,3351.0,3350.9,3.12384608]
[1642280597035,0.78085155,3351.0,3350.9,1.2921549]
[1642280597635,0.78085155,3351.0,3350.9,1.2913549]
[1642280597835,0.78085155,3351.0,3350.9,1.1713549]
[1642280598035,0.78085155,3351.0,3350.9,1.41745397]
[1642280598235,0.79347205,3351.0,3350.9,1.41665397]
[1642280598635,0.79347205,3351.0,3350.9,1.41745397]
[1642280598888,1.52047205,3351.0,3350.9,1.41745397]
[1642280599090,1.52047205,3351.0,3350.9,1.41905397]
[1642280599284,0.78085155,3351.0,3350.9,5.36825397]
[1642280599485,0.78085155,3351.0,3350.9,5.36905397]
[1642280600487,0.78085155,3351.0,3350.9,5.24745397]
[1642280600685,0.78085155,3351.0,3350.9,1.41825397]
[1642280600886,0.78085155,3351.0,3350.9,1.41905397]
[1642280601087,0.78085155,3351.0,3350.9,1.41745397]
[1642280601598,0.78085155,3351.0,3350.9,1.41825397]
[1642280602190,1.30785155,3351.0,3350.9,1.41825397]
[1642280603037,1.30785155,3351.0,3350.9,1.41905397]
[1642280603237,1.31998489,3351.0,3350.9,1.4805832]
[1642280603839,0.78085155,3351.0,3350.9,9.41536864]
[1642280604042,0.55828116,3351.0,3350.9,7.5329832]
[1642280604247,8.75654162,3351.6,3351.0,16.6]
[1642280604439,8.75654162,3351.6,3351.1,0.4795424]
[1642280604639,0.00341054,3351.5,3351.1,0.5538]
[1642280604838,0.00341054,3351.5,3351.2,0.1216]
[1642280605040,8.70654162,3351.6,3351.3,6.529]
[1642280605041,0.00284212,3351.4,3351.3,6.529]
[1642280605239,0.00284212,3351.4,3351.3,7.71823329]
[1642280605439,0.00284212,3351.4,3351.3,1.73423329]
[1642280605639,0.91425628,3351.4,3351.3,1.61823329]
[1642280605840,0.00284212,3351.4,3351.3,1.73103329]
[1642280606042,0.00284212,3351.4,3351.3,1.61823329]
[1642280608504,0.77984212,3351.4,3351.3,1.61823329]
[1642280610032,0.77895491,3351.4,3351.3,1.61823329]
[1642280611634,1.55595491,3351.4,3351.3,1.61823329]
[1642280615489,1.55595491,3351.4,3351.3,0.429]
[1642280616890,1.55595491,3351.4,3351.3,1.94645193]
[1642280621050,1.33295491,3351.4,3351.3,1.94645193]
[1642280625041,6.10104593,3351.6,3351.4,12.05]
[1642280625240,5.55396114,3351.6,3351.5,17.029]
[1642280625448,5.55396114,3351.6,3351.5,5.9306]
[1642280625640,5.55509799,3351.6,3351.5,5.789]
[1642280627039,7.55552168,3351.6,3351.5,5.789]
[1642280627241,2.55552168,3351.6,3351.5,0.429]
[1642280627541,4.68450768,3351.6,3350.8,0.09874173]
[1642280627740,0.015426,3351.0,3350.8,0.09874173]
[1642280628044,0.134726,3351.0,3350.8,0.09874173]
[1642280628239,0.792426,3351.0,3350.8,0.09874173]
[1642280628642,0.777,3351.0,3350.8,0.09874173]
[1642280629588,2.75958064,3351.0,3350.8,0.09874173]
[1642280629785,0.777,3351.0,3350.8,0.09874173]
[1642280629992,2.62083603,3351.0,3350.8,0.09874173]
[1642280630189,2.63811111,3351.0,3350.8,0.09874173]
[1642280630386,0.777,3351.0,3350.8,0.09874173]
[1642280631086,2.63176046,3351.0,3350.8,0.09874173]
[1642280631490,3.41872746,3351.0,3350.8,0.09874173]
[1642280632187,3.53802746,3351.0,3350.8,0.09874173]
[1642280633040,3.53802746,3351.0,3350.9,0.1113827]
[1642280633344,1.683267,3351.0,3350.9,0.1113827]
[1642280633639,3.62311662,3351.0,3350.9,0.1113827]
[1642280634539,5.68912395,3351.0,3350.9,0.1113827]
[1642280635741,2.410267,3351.0,3350.9,0.1113827]
[1642280635946,2.4003,3351.0,3350.9,0.1113827]
[1642280636387,2.409825,3351.0,3350.9,0.1113827]
[1642280637389,2.290525,3351.0,3350.9,0.1113827]
[1642280637788,4.94076232,3351.0,3350.9,0.1113827]
[1642280638190,3.058,3351.0,3350.9,0.1113827]
[1642280640235,3.058,3351.0,3350.5,0.429]
[1642280640633,3.058,3351.0,3350.6,0.11814739]
[1642280640835,3.058,3351.0,3350.6,0.11734739]
[1642280641034,3.058,3351.0,3350.7,0.00397897]
[1642280641035,3.835,3351.0,3350.7,0.00397897]
[1642280642834,3.844927,3351.0,3350.7,0.00397897]
[1642280643236,3.835,3351.0,3350.7,0.00397897]
[1642280643438,3.835,3351.0,3350.7,0.11757897]
[1642280643638,3.835,3351.0,3350.8,0.31142103]
[1642280643898,3.835,3351.0,3350.8,0.31483157]
[1642280644091,3.612,3351.0,3350.9,7.97924212]
[1642280644289,3.612,3351.0,3350.9,0.55424212]
[1642280644690,3.612,3351.0,3350.9,0.55024212]
[1642280644890,3.612,3351.0,3350.9,0.55104212]
[1642280645292,3.612,3351.0,3350.9,0.54944212]
[1642280645495,3.612,3351.0,3350.9,0.43184212]
[1642280646500,3.612,3351.0,3350.9,5.23184212]
[1642280647294,3.28314,3351.0,3350.9,5.23184212]
[1642280647737,3.28314,3351.0,3350.9,0.43184212]
[1642280648438,3.28314,3351.0,3350.9,5.24784212]
[1642280648737,3.28314,3351.0,3350.9,5.13184212]
[1642280649340,3.28314,3351.0,3350.9,5.25104212]
[1642280649539,3.28314,3351.0,3350.9,5.24944212]
[1642280649740,3.28314,3351.0,3350.9,5.25024212]
[1642280649940,3.28314,3351.0,3350.9,5.25344212]
[1642280650239,3.28314,3351.0,3350.9,5.25664212]
[1642280650440,3.28314,3351.0,3350.9,13.85744212]
[1642280650639,4.06014,3351.0,3350.9,5.25744212]
[1642280650839,4.06014,3351.0,3350.9,5.25264212]
[1642280651147,4.06014,3351.0,3350.9,5.25504212]
[1642280651388,4.06014,3351.0,3350.9,5.25344212]
[1642280651588,4.06014,3351.0,3350.9,0.55024212]
[1642280651791,4.06014,3351.0,3350.9,0.43184212]
[1642280652187,4.06014,3351.0,3350.9,0.54784212]
[1642280652389,4.06014,3351.0,3350.9,6.64864212]
[1642280652591,4.06014,3351.0,3350.9,6.65504212]
[1642280652786,4.06014,3351.0,3350.9,6.65104212]
[1642280652989,4.06014,3351.0,3350.9,12.02064212]
[1642280653189,4.06014,3351.0,3350.9,12.04144212]
[1642280653390,4.06014,3351.0,3350.9,22.54064212]
[1642280653689,4.06014,3351.0,3350.9,22.54544212]
[1642280653988,4.83714,3351.0,3350.9,22.54224212]
[1642280654190,3.83714,3351.0,3350.9,23.2965921]
[1642280654889,3.83714,3351.0,3350.9,23.2941921]
[1642280655137,3.83714,3351.0,3350.9,23.2965921]
[1642280655339,3.83714,3351.0,3350.9,22.53984212]
[1642280655736,3.83714,3351.0,3350.9,22.56673943]
[1642280655937,3.83714,3351.0,3350.9,22.57633943]
[1642280656138,3.83714,3351.0,3350.9,22.55024212]
[1642280656338,3.83714,3351.0,3350.9,22.55104212]
[1642280656542,3.83714,3351.0,3350.9,22.54624212]
[1642280656740,3.83714,3351.0,3350.9,22.54544212]
[1642280656944,3.83714,3351.0,3350.9,23.34155226]
[1642280657139,4.61414,3351.0,3350.9,23.37784683]
[1642280657339,4.61414,3351.0,3350.9,26.38837161]
[1642280657840,4.61414,3351.0,3350.9,27.32227161]
[1642280658239,4.61414,3351.0,3350.9,27.32307161]
[1642280658441,4.62621664,3351.0,3350.9,27.5855555]
[1642280658642,4.62621664,3351.0,3350.9,27.5831555]